{"text_format":"3","workbook":"xlsx","n_sheets":1,"sheets":["Лист1"],"not_rendered":{"external_links":1},"read":"whole","date_system":"1900"}

{"sheet":"Лист1","index":0,"n_rows":8,"n_cols":13,"rows_kept":8}
["№","Фамилия","Имя","Пол","Участник с ОВЗ","Класс","Класс участия","Балл","Макс. Балл","Статус","Призер МЭ прошлого года","Учитель","Место работы учителя"]
[1,3,4,6,8,9,10,11,12,13,14,15,16]
[1,"Сафина","Аделина","ж","нет",4,4,38,45,{"$f":"$J$4","v":"призер "},{"$f":"$E$3","v":"нет"},"Насыбуллина Алсу Ильдаровна","МБОУ \"Многопрофильная школа 181\""]
[13,"Хазиева","Асель","ж",{"$f":"$K$6","v":"нет"},9,9,36,45,"призер ","нет",{"$f":"$L$3","v":"Насыбуллина Алсу Ильдаровна"},{"$f":"$M$3","v":"МБОУ \"Многопрофильная школа 181\""}]
[16,"Махмутова","Мадина","ж","нет",11,11,44,45,"победитель","нет","Насыбуллина Алсу Ильдаровна","МБОУ \"Многопрофильная школа 181\""]
[17,{"$f":"$B$5","v":"Махмутова"},"Малика","ж","нет",11,11,40,45,{"$f":"$J$4","v":"призер "},"нет","Насыбуллина Алсу Ильдаровна","МБОУ \"Многопрофильная школа 181\""]
[21,"Хамидуллина","Гулина","ж","нет",7,7,33,35,{"$f":"$J$4","v":"призер "},{"$f":"$K$6","v":"нет"},"Насыбуллина Алсу Ильдаровна",{"$f":"$M$5","v":"МБОУ \"Многопрофильная школа 181\""}]
[22,"Ахметьянова","Амина","ж","нет",10,10,45,45,{"$f":"$J$5","v":"победитель"},{"$f":"$K$6","v":"нет"},"Насыбуллина Алсу Ильдаровна","МБОУ \"Многопрофильная школа 181\""]